bitfinex-derivatives/quotes_SOLF0:USTF0_20240904
["timestamp","ask_amount","ask_price","bid_price","bid_amount"]
[1725464548307,0.05378731,132.12,132.09,0.04945574]
[1725464549010,3.7847,132.11,132.09,0.04945574]
[1725464549204,0.05378731,132.12,132.09,0.04945574]
[1725464549506,3.7845,132.11,132.09,0.04945574]
[1725464551501,3.83798731,132.12,132.09,0.04945574]
[1725464551904,3.83798731,132.12,132.09,3.83435574]
[1725464552101,0.05378731,132.12,132.09,0.04945574]
[1725464553212,0.05378731,132.12,132.11,3.7845]
[1725464559714,0.05378731,132.12,132.1,3.7846]
[1725464560207,0.05378731,132.12,132.11,3.7845]
[1725464560410,2.5527,132.19,132.09,0.04945574]
[1725464560411,7.5607,132.26,132.09,0.04945574]
[1725464560614,3.7822,132.19,132.11,21.82]
[1725464560916,2.4941,132.25,132.12,3.6625]
[1725464560917,3.87530284,132.23,132.12,3.6625]
[1725464561115,3.7826,132.18,132.12,3.6625]
[1725464561307,0.0494685,132.16,132.15,3.7832]
[1725464561628,0.0535629,132.17,132.14,0.04893555]
[1725464562205,0.0535629,132.17,132.16,3.783]
[1725464563106,0.0535629,132.17,132.15,3.7832]
[1725464563419,0.0535629,132.17,132.14,0.04893555]
[1725464563812,0.0535629,132.17,132.16,3.7831]
[1725464566008,0.0535629,132.17,132.14,1.90233555]
[1725464566009,0.0535629,132.17,132.14,0.04893555]
[1725464566517,3.8364629,132.17,132.14,3.83253555]
[1725464566719,0.0535629,132.17,132.14,0.04893555]
[1725464567316,3.7833,132.16,132.14,0.04893555]
[1725464567620,0.0535629,132.17,132.14,0.04893555]
[1725464567821,3.8364629,132.17,132.14,3.83243555]
[1725464568319,3.8364629,132.17,132.14,0.04893555]
[1725464568524,3.8364629,132.17,132.14,3.83243555]
[1725464568912,3.7831,132.16,132.14,3.83243555]
[1725464569111,0.0535629,132.17,132.14,0.04893555]
[1725464569518,3.7833,132.15,132.14,0.04893555]
[1725464570619,0.0535629,132.17,132.14,0.04893555]
[1725464571323,3.8363629,132.17,132.14,0.04893555]
[1725464571822,0.0535629,132.17,132.14,0.04893555]
[1725464572022,0.0535629,132.17,132.14,3.58903555]
[1725464572218,0.0535629,132.17,132.16,3.7831]
[1725464573918,0.0535629,132.17,132.15,3.7832]
[1725464574217,0.0535629,132.17,132.14,5.34863555]
[1725464574218,0.0535629,132.17,132.14,3.58903555]
[1725464574720,3.81189123,132.17,132.14,3.58903555]
[1725464575125,3.8365629,132.17,132.14,7.37253555]
[1725464575320,3.8365629,132.17,132.14,3.58903555]
[1725464575727,0.0535629,132.17,132.15,3.7832]
[1725464576920,3.8363629,132.17,132.15,3.7832]
[1725464577423,3.8363629,132.17,132.14,7.37253555]
[1725464577623,3.8363629,132.17,132.14,3.58903555]
[1725464577926,3.7831,132.16,132.14,7.37253555]
[1725464578312,0.0535629,132.17,132.14,7.37253555]
[1725464578514,0.0535629,132.17,132.14,0.04893555]
[1725464579118,3.7833,132.15,132.14,0.04893555]
[1725464580518,0.0535629,132.17,132.14,0.04893555]
[1725464581025,3.8364629,132.17,132.14,0.04893555]
[1725464581529,3.8364629,132.17,132.14,3.83243555]
[1725464582034,3.7831,132.16,132.14,3.83243555]
[1725464582330,0.0535629,132.17,132.14,0.04893555]
[1725464582631,3.7833,132.15,132.14,0.04893555]
[1725464582834,21.82,132.15,132.08,7.3725]
[1725464583128,3.7846,132.11,132.08,7.3725]
[1725464583924,3.785,132.1,132.08,0.05169641]
[1725464585433,3.785,132.1,132.08,3.83699641]
[1725464585627,3.83472038,132.11,132.08,3.83699641]
[1725464585824,0.05012038,132.11,132.1,3.7848]
[1725464587019,3.7834,132.15,132.12,3.784]
[1725464587224,24.369,132.18,132.06,1.797]
[1725464587929,21.82,132.18,132.07,21.82]
[1725464588237,0.04944265,132.13,132.12,3.7842]
[1725464588630,0.04944265,132.13,132.12,5.6525]
[1725464588823,0.04944265,132.13,132.11,0.0525696]
[1725464589329,3.7842,132.12,132.11,0.0525696]
[1725464591735,0.04944265,132.13,132.11,0.0525696]
[1725464592332,0.04944265,132.13,132.12,3.7842]
[1725464594538,0.04944265,132.13,132.11,3.8369696]
[1725464594929,0.04944265,132.13,132.11,0.0525696]
[1725464595826,3.7842,132.12,132.11,0.0525696]
[1725464599038,21.82,132.13,132.03,5.5047]
[1725464599236,21.82,132.11,132.03,5.5047]
[1725464599434,21.82,132.11,132.04,3.7863]
[1725464599634,3.7858,132.07,132.04,3.7863]
[1725464599840,3.7858,132.07,132.03,5.5047]
[1725464600143,0.05691001,132.06,132.04,3.83476221]
[1725464600631,3.7862,132.05,132.04,0.04836221]
[1725464602441,0.05691001,132.06,132.04,0.04836221]
[1725464602833,3.84291001,132.06,132.04,0.04836221]
[1725464603647,0.05691001,132.06,132.04,3.83466221]
[1725464603838,0.05691001,132.06,132.04,0.04836221]
[1725464604142,3.7862,132.05,132.04,0.04836221]
[1725464604339,3.7862,132.05,131.98,5.6085]
[1725464604340,21.82,132.05,131.98,5.6085]
[1725464604939,25.66819331,132.05,131.98,5.6085]
[1725464605137,1.9941,132.08,131.9,21.82]
[1725464605138,21.82,132.02,131.9,21.82]
[1725464605338,21.82,132.02,131.95,0.05446352]
[1725464605339,0.05009878,131.97,131.95,0.05446352]
[1725464605533,0.05298832,131.97,131.95,0.05446352]
[1725464605732,25.6088,131.96,131.95,0.05446352]
[1725464605932,21.82,131.96,131.88,3.6083]
[1725464606137,21.82,131.96,131.84,1.7748]
[1725464606339,25.59660783,131.96,131.85,3.6083]
[1725464606842,21.82,131.94,131.85,3.6083]
[1725464607239,0.05379805,131.91,131.88,0.05736296]
[1725464607537,3.76948893,131.91,131.88,0.05736296]
[1725464607742,0.05379805,131.91,131.88,0.05736296]
[1725464607937,3.7905,131.9,131.88,0.05736296]
[1725464608144,0.05379805,131.91,131.88,0.05736296]
[1725464608338,21.82,131.89,131.81,3.74791881]
[1725464608638,3.7921,131.85,131.78,5.4564]
[1725464608831,25.52810784,131.89,131.78,9.20962694]
[1725464609032,21.82,131.91,131.78,9.20962694]
[1725464609232,21.82,131.93,131.81,21.82]
[1725464609443,0.0548843,131.86,131.81,21.82]
[1725464609643,25.61531283,131.93,131.81,21.82]
[1725464610045,3.7904,131.91,131.83,21.82]
[1725464610238,3.79531283,131.93,131.83,21.82]
[1725464610542,3.7903,131.91,131.81,21.82]
[1725464610740,0.05756464,131.87,131.85,0.05439123]
[1725464611043,3.7906,131.9,131.86,7.53315699]
[1725464611243,3.7906,131.9,131.86,3.7914]
[1725464611540,25.62887201,131.95,131.87,3.7872587]
[1725464611747,21.82,131.95,131.84,21.82]
[1725464611943,0.0542056,131.91,131.88,3.84423212]
[1725464612249,0.0542056,131.91,131.88,3.93889867]
[1725464612445,0.0542056,131.91,131.88,0.05343212]
[1725464612642,0.0542056,131.91,131.88,3.84443212]
[1725464612839,21.82,131.97,131.88,3.84443212]
[1725464613146,21.82,131.97,131.88,3.69928873]
[1725464613348,21.82,131.97,131.85,1.8311]
[1725464613740,0.04883583,131.92,131.9,0.05290774]
[1725464614447,3.7902,131.91,131.9,0.05290774]
[1725464616343,21.82,131.91,131.75,21.82]
[1725464616542,21.82,131.87,131.78,3.7939]
[1725464616747,21.82,131.85,131.76,3.7921]
[1725464616948,25.67128402,131.85,131.76,7.51517226]
[1725464617140,25.67128402,131.85,131.76,3.7921]
[1725464617347,0.04948368,131.82,131.79,0.05396738]
[1725464617543,3.7934,131.8,131.79,0.05396738]
[1725464617848,21.82,131.88,131.79,0.05396738]
[1725464617849,227.0,131.95,131.79,0.05396738]
[1725464618050,0.43760467,131.93,131.81,26.21]
[1725464618247,5.07376297,131.94,131.81,26.21]
[1725464618556,3.791,131.89,131.81,26.21]
[1725464618853,3.7757984,131.91,131.81,26.21]
[1725464619047,0.04930252,131.87,131.85,0.04812831]
[1725464619249,7.5660984,131.91,131.87,3.7911]
[1725464619455,3.7757984,131.91,131.86,1.8514]
[1725464619649,26.21,131.95,131.83,3.83573171]
[1725464619856,3.7914,131.87,131.82,1.8514]
[1725464620453,0.05675339,131.86,131.83,0.04884526]
[1725464620647,0.05675339,131.86,131.83,3.84114526]
[1725464621152,0.05675339,131.86,131.83,3.84134526]
[1725464622550,0.05675339,131.86,131.84,3.792]
[1725464622751,0.05675339,131.86,131.83,0.04884526]
[1725464623654,3.7922,131.85,131.83,0.04884526]
[1725464624050,0.05675339,131.86,131.83,0.04884526]
[1725464624644,3.7922,131.84,131.83,0.04884526]
[1725464626955,3.7921,131.85,131.83,0.04884526]
[1725464627351,0.05675339,131.86,131.83,0.04884526]
[1725464628755,3.792,131.85,131.83,0.04884526]
[1725464628956,0.05675339,131.86,131.83,0.04884526]
[1725464630551,3.84855339,131.86,131.83,3.84124526]
[1725464630756,0.05675339,131.86,131.83,3.84124526]
[1725464630956,3.7922,131.84,131.83,0.04884526]
[1725464631160,0.05675339,131.86,131.83,0.04884526]
[1725464632369,0.05675339,131.86,131.83,3.90724988]
[1725464632657,30.07219815,131.94,131.84,1.7813]
[1725464632860,30.07219815,131.94,131.85,1.7521]
[1725464633267,3.791,131.89,131.86,3.7917]
[1725464633456,3.84013794,131.89,131.86,3.84846462]
[1725464634053,3.7913,131.88,131.86,0.05676462]
[1725464634362,0.04913794,131.89,131.86,0.05676462]
[1725464634568,3.7914,131.87,131.86,0.05676462]
[1725464634769,7.55154886,131.87,131.86,0.05676462]
[1725464636363,3.792,131.85,131.8,1.7521]
[1725464636566,26.21,131.89,131.8,1.7521]
[1725464637071,3.7918,131.86,131.8,1.7521]
[1725464637270,0.04849993,131.84,131.83,3.7924]
[1725464637472,3.7925,131.83,131.82,0.04794311]
[1725464640679,0.04849993,131.84,131.82,0.04794311]
[1725464640882,0.04849993,131.84,131.82,3.84064311]
[1725464641181,0.04849993,131.84,131.82,0.04794311]
[1725464641374,21.87,131.91,131.82,0.04794311]
[1725464641571,21.87,131.91,131.84,3.7921]
[1725464641572,3.7915,131.87,131.84,3.7921]
[1725464641776,21.87,131.91,131.8,1.9167]
[1725464641977,248.87,131.93,131.81,21.87]
[1725464642475,0.05332969,131.88,131.86,0.05503697]
[1725464642783,0.05464973,131.88,131.87,3.7914]
[1725464643278,0.05464973,131.88,131.86,3.84663697]
[1725464643485,0.05464973,131.88,131.86,3.82874353]
[1725464643678,0.05464973,131.88,131.86,0.05503697]
[1725464644083,21.87,131.93,131.86,0.05503697]
[1725464644279,3.86219815,131.94,131.88,3.7909]
[1725464644481,21.87,131.95,131.88,3.7909]
[1725464645185,3.7901,131.92,131.9,0.04861893]
[1725464645686,25.75636018,131.95,131.9,0.04861893]
[1725464645880,3.7902,131.91,131.9,0.04861893]
[1725464646080,25.75636018,131.95,131.9,0.04861893]
[1725464646281,21.87,131.98,131.9,0.04861893]
[1725464646582,21.87,131.98,131.93,0.05387226]
[1725464646789,227.0,132.06,131.93,0.05387226]
[1725464646980,3.3996,132.06,131.97,0.05583363]
[1725464647179,0.43752039,132.05,132.0,0.05595401]
[1725464647379,21.87,132.06,132.0,0.05595401]
[1725464647582,25.74059287,132.06,132.0,0.05595401]
[1725464647785,21.87,132.03,132.0,0.05595401]
[1725464647981,3.7873,132.02,132.0,0.05595401]
[1725464648182,3.7873,132.02,132.0,0.05523985]
[1725464648383,26.2,132.04,132.0,0.05523985]
[1725464648577,26.2,132.11,132.0,0.05523985]
[1725464648783,26.2,132.11,132.04,0.05556324]
[1725464649185,3.7861,132.06,132.04,0.05556324]
[1725464649981,3.87727272,132.07,132.04,0.05556324]
[1725464649982,7.66307272,132.07,132.04,0.05556324]
[1725464650185,26.2,132.11,132.04,0.05556324]
[1725464651390,0.43724749,132.1,132.04,0.05556324]
[1725464651600,3.7862,132.05,132.04,0.05556324]
[1725464653085,26.2,132.05,131.97,1.8869]
[1725464653284,26.2,132.07,131.97,1.8869]
[1725464653685,26.2,132.07,131.99,3.7878]
[1725464653886,3.7867,132.04,131.99,3.7878]
[1725464654086,0.05113015,132.03,132.0,3.83590402]
[1725464654388,0.05113015,132.03,132.0,3.82928063]
[1725464654787,0.05113015,132.03,132.02,3.7871]
[1725464655202,0.05113015,132.03,132.01,5.6496]
[1725464655387,0.05113015,132.03,132.01,3.7873]
[1725464655589,0.05113015,132.03,132.0,0.04840402]
[1725464656182,0.05113015,132.03,132.01,3.7873]
[1725464657600,0.05113015,132.03,132.02,3.7871]
[1725464659993,0.05113015,132.03,132.0,0.04840402]
[1725464660196,0.05113015,132.03,132.0,3.90379376]
[1725464660797,0.05113015,132.03,132.0,0.04840402]
[1725464660998,0.05113015,132.03,132.02,3.7871]
[1725464661493,0.05113015,132.03,132.01,3.7872]
[1725464662694,0.05113015,132.03,132.01,3.7874]
[1725464662886,0.05113015,132.03,132.0,0.04840402]
[1725464663097,0.05113015,132.03,132.01,3.74309106]
[1725464663293,0.05113015,132.03,132.01,3.7872]
[1725464664095,0.05113015,132.03,132.0,0.04840402]
[1725464664296,3.7874,132.01,132.0,0.04840402]
[1725464665803,3.7872,132.02,132.0,0.04840402]
[1725464665994,0.05113015,132.03,132.0,0.04840402]
[1725464666995,3.7873,132.02,132.0,0.04840402]
[1725464667192,0.05113015,132.03,132.0,3.82795933]
[1725464667391,0.05113015,132.03,132.0,0.04840402]
[1725464667596,3.83793015,132.03,132.0,3.83590402]
[1725464667802,0.05113015,132.03,132.0,3.80674291]
[1725464668000,0.05113015,132.03,131.96,26.2]
[1725464668001,3.7826,132.18,132.12,3.7839]
[1725464668198,227.0,132.22,132.09,26.2]
[1725464668401,253.2,132.27,132.12,26.2]
[1725464668603,4.21911645,132.21,132.12,30.0252214]
[1725464668802,253.2,132.27,132.12,30.0252214]
[1725464669002,0.02254711,132.21,132.15,26.2]
[1725464669308,0.7271,132.31,132.18,0.05383386]
[1725464669501,3.82749224,132.25,132.16,3.6671]
[1725464669704,3.7808,132.24,132.18,3.7825]
[1725464670000,3.78321096,132.23,132.18,3.7825]
[1725464670197,21.79,132.27,132.16,3.6671]
[1725464670405,21.79,132.27,132.2,0.05361949]
[1725464670608,25.63641586,132.27,132.2,0.05361949]
[1725464670907,3.7813,132.23,132.2,0.05361949]
[1725464671506,1.3255,132.26,132.2,0.05361949]
[1725464671698,0.43722513,132.25,132.2,0.05361949]
[1725464671895,21.79,132.25,132.2,0.05361949]
[1725464673202,1.3255,132.26,132.2,0.05361949]
[1725464673702,3.7805,132.25,132.2,0.05361949]
[1725464673911,1.3255,132.26,132.2,0.05361949]
[1725464674407,3.7811,132.23,132.2,0.05361949]
[1725464675299,3.7814,132.22,132.2,0.05361949]
[1725464675506,1.3255,132.26,132.2,0.05361949]
[1725464675808,2.6862,132.26,132.2,0.05361949]
[1725464676004,3.7813,132.23,132.2,0.05361949]
[1725464676401,25.63641586,132.27,132.2,0.05361949]
[1725464676603,3.7807,132.25,132.2,0.05361949]
[1725464677201,3.7802,132.26,132.2,0.05361949]
[1725464677696,7.48016216,132.26,132.21,3.7814]
[1725464677901,3.69996216,132.26,132.2,0.05361949]
[1725464678102,2.6851,132.3,132.2,0.05361949]
[1725464678301,3.7801,132.27,132.24,0.0477291]
[1725464679309,3.7805,132.25,132.24,0.0477291]
[1725464679504,3.86442729,132.28,132.24,0.0477291]
[1725464679698,1.3244,132.3,132.24,0.0477291]
[1725464680103,21.79,132.29,132.24,0.0477291]
[1725464680405,3.7797,132.28,132.24,3.8284291]
[1725464680609,3.7797,132.28,132.24,0.0477291]
[1725464680810,3.71879255,132.28,132.24,0.0477291]
[1725464681008,1.3244,132.3,132.24,0.0477291]
[1725464681697,3.7801,132.27,132.24,0.0477291]
[1725464681903,3.76210287,132.26,132.24,0.0477291]
[1725464682102,1.3607,132.35,132.25,21.79]
[1725464682299,0.43726347,132.34,132.25,21.79]
[1725464682499,0.43726347,132.34,132.28,0.05445003]
[1725464682808,2.6851,132.35,132.28,0.05445003]
[1725464682809,24.4751,132.35,132.28,0.05445003]
[1725464683009,0.4371773,132.34,132.28,0.05445003]
[1725464683316,24.4751,132.35,132.28,0.05445003]
[1725464683514,0.43715263,132.34,132.28,0.05445003]
[1725464684103,21.79,132.33,132.28,0.05445003]
[1725464685318,2.6851,132.35,132.28,0.05445003]
[1725464685319,24.4751,132.35,132.28,0.05445003]
[1725464686109,0.4371381,132.34,132.28,0.05445003]
[1725464686411,24.4751,132.35,132.28,0.05445003]
[1725464686906,3.779,132.31,132.28,0.05445003]
[1725464687208,24.4751,132.35,132.28,0.05445003]
[1725464687510,3.7789,132.31,132.28,0.05445003]
[1725464688714,3.779,132.31,132.28,0.05445003]
[1725464688905,24.4751,132.35,132.28,0.05445003]
[1725464689816,3.7789,132.31,132.28,0.05445003]
[1725464690113,24.4751,132.35,132.28,0.05445003]
[1725464690610,21.79,132.33,132.28,0.05445003]
[1725464691005,227.0,132.41,132.28,0.05445003]
[1725464691307,227.0,132.41,132.33,0.05611562]
[1725464691308,3.86261537,132.4,132.33,0.05611562]
[1725464691612,3.82637171,132.41,132.33,1.8174]
[1725464691813,23.8865,132.45,132.35,0.05726083]
[1725464692123,3.7762,132.4,132.39,0.05086287]
[1725464692306,23.8865,132.45,132.39,0.05086287]
[1725464692506,0.43717942,132.44,132.39,0.05086287]
[1725464692902,3.776,132.41,132.39,0.05086287]
[1725464693105,27.66485775,132.45,132.39,0.05086287]
[1725464693508,3.7756,132.43,132.39,0.05086287]
[1725464693901,27.66485775,132.45,132.39,0.05086287]
[1725464694110,3.7762,132.4,132.39,0.05086287]
[1725464694709,27.66485775,132.45,132.39,0.05086287]
[1725464694909,21.79,132.43,132.29,21.79]
[1725464695109,21.79,132.41,132.29,21.79]
[1725464695408,3.7766,132.39,132.33,3.778]
[1725464695603,1.3287,132.42,132.32,21.79]
[1725464695807,21.79,132.43,132.32,21.79]
[1725464696011,21.79,132.43,132.36,0.0517634]
[1725464696012,0.05086287,132.39,132.36,0.0517634]
[1725464696418,3.82736287,132.39,132.36,0.0517634]
[1725464697007,3.7771,132.37,132.36,0.0517634]
[1725464697206,0.05086287,132.39,132.36,0.0517634]
[1725464697616,3.76539944,132.38,132.36,0.0517634]
[1725464697813,0.05086287,132.39,132.36,0.0517634]
[1725464698506,3.74839392,132.38,132.36,0.0517634]
[1725464698707,3.7771,132.37,132.36,0.0517634]
[1725464698908,7.56441766,132.37,132.36,0.0517634]
[1725464699109,3.78731766,132.37,132.27,21.79]
[1725464699303,21.79,132.38,132.28,5.46013648]
[1725464699507,25.62644471,132.38,132.28,5.46013648]
[1725464699711,3.7774,132.36,132.31,3.7787]
[1725464699910,25.62644471,132.38,132.28,5.46013648]
[1725464700120,0.05068873,132.34,132.32,0.05684318]
[1725464701014,248.79,132.53,132.33,21.79]
[1725464701212,248.79,132.53,132.41,21.79]
[1725464701412,0.4363494,132.52,132.41,25.64393872]
[1725464701613,3.75113679,132.52,132.42,1.9076]
[1725464701816,2.0464,132.54,132.46,0.05171573]
[1725464701817,3.7735,132.5,132.46,0.05171573]
[1725464702113,0.05193754,132.49,132.47,0.05121661]
[1725464702320,0.04898347,132.49,132.47,0.04757012]
[1725464703114,0.04898347,132.49,132.47,3.82167012]
[1725464703419,0.04898347,132.49,132.47,0.04757012]
[1725464704123,0.04898347,132.49,132.47,3.82177012]
[1725464704513,0.04898347,132.49,132.47,0.04757012]
[1725464704712,0.04898347,132.49,132.48,3.7739]
[1725464705210,0.04898347,132.49,132.47,0.04757012]
[1725464705411,3.85445761,132.54,132.48,21.79]
[1725464705611,23.0671,132.6,132.5,3.7732]
[1725464705807,0.4364655,132.59,132.42,3.7763]
[1725464706007,21.79,132.58,132.46,21.79]
[1725464706612,23.0671,132.6,132.48,21.79]
[1725464706807,23.0671,132.6,132.48,25.5387733]
[1725464707013,3.7711,132.58,132.51,3.773]
[1725464707212,25.53924705,132.62,132.51,21.79]
[1725464707414,0.4362245,132.6,132.51,21.79]
[1725464707612,25.53924705,132.62,132.55,0.04869415]
[1725464707816,3.7708,132.6,132.55,0.04869415]
[1725464708216,25.53924705,132.62,132.55,0.04869415]
[1725464708718,1.2751,132.64,132.55,0.04869415]
[1725464708917,5.05878076,132.64,132.58,0.04924151]
[1725464709226,1.2751,132.64,132.58,0.04924151]
[1725464709424,3.7703,132.61,132.58,0.04924151]
[1725464709626,3.73198392,132.6,132.58,0.04924151]
[1725464710118,21.79,132.62,132.58,0.04924151]
[1725464710421,72.8428408,132.65,132.58,0.04924151]
[1725464710619,3.7694,132.64,132.58,3.82034151]
[1725464710820,3.85904014,132.65,132.59,21.79]
[1725464711016,3.83386821,132.78,132.61,3.7702]
[1725464711017,3.75565952,132.66,132.61,3.7702]
[1725464711215,7.87465421,132.8,132.64,21.79]
[1725464711418,21.79,132.75,132.69,0.05230531]
[1725464711620,0.43524307,132.74,132.71,0.0527495]
[1725464711823,0.43524307,132.74,132.71,0.05026694]
[1725464712021,3.7671,132.72,132.71,0.05026694]
[1725464712219,1.2643,132.75,132.71,0.05026694]
[1725464712423,4.51394379,132.77,132.71,0.05026694]
[1725464712618,21.79,132.75,132.71,0.05026694]
[1725464712923,3.7671,132.72,132.71,0.05026694]
[1725464713329,21.79,132.75,132.71,0.05026694]
[1725464713721,3.7671,132.72,132.71,0.05026694]
[1725464714825,3.7669,132.73,132.71,0.05026694]
[1725464715028,5.11164379,132.77,132.71,0.05026694]
[1725464715228,7.87171517,132.84,132.71,0.05026694]
[1725464715527,0.43461991,132.83,132.76,0.05200213]
[1725464715730,3.71795838,132.84,132.74,21.79]
[1725464715931,3.7648,132.81,132.78,0.05791489]
[1725464716133,3.83971652,132.85,132.78,0.05791489]
[1725464716429,7.578,133.01,132.8,21.79]
[1725464716635,561.0,133.07,132.83,21.79]
[1725464716636,21.79,132.96,132.83,21.79]
[1725464716930,0.43410777,132.95,132.83,21.79]
[1725464717539,0.43410777,132.95,132.86,21.79]
[1725464717830,25.51007227,132.96,132.88,0.05775599]
[1725464718031,26.02,132.93,132.88,0.05775599]
[1725464718337,26.45382931,132.95,132.88,0.05775599]
[1725464718521,0.43371369,132.94,132.88,0.05775599]
[1725464718728,0.43371369,132.94,132.81,3.6177]
[1725464718929,3.7621,132.9,132.81,3.6177]
[1725464719238,29.70430959,132.95,132.86,0.04953292]
[1725464719438,29.70430959,132.95,132.76,26.02]
[1725464719439,26.02,132.9,132.76,26.02]
[1725464719638,26.02,132.9,132.76,29.7171]
[1725464719831,3.79686794,132.9,132.79,26.02]
[1725464720036,26.02,132.93,132.82,0.05648585]
[1725464720232,26.02,132.93,132.79,26.02]
[1725464720233,0.43383626,132.92,132.79,26.02]
[1725464720429,0.43383626,132.92,132.77,26.02]
[1725464720630,26.02,132.85,132.84,0.04961932]
[1725464720827,26.02,132.85,132.71,1.7493]
[1725464721028,26.02,132.85,132.66,3.6406]
[1725464721029,3.766,132.76,132.67,29.7884]
[1725464721234,26.02,132.81,132.67,26.02]
[1725464721628,26.02,132.83,132.7,26.02]
[1725464721837,26.02,132.86,132.72,26.02]
[1725464722035,0.43403173,132.85,132.75,0.05064524]
[1725464722339,0.05111575,132.8,132.72,26.02]
[1725464722538,0.05111575,132.8,132.66,5.3899]
[1725464722539,0.05111575,132.8,132.79,0.05602712]
[1725464722735,3.69511184,132.86,132.79,0.05602712]
[1725464723041,3.7634,132.85,132.77,26.02]
[1725464723335,3.7634,132.85,132.76,1.7493]
[1725464723336,0.05111575,132.81,132.76,1.7493]
[1725464723535,3.81561575,132.81,132.8,0.04843806]
[1725464723736,3.82428259,132.81,132.67,1.7493]
[1725464724039,29.84418195,132.82,132.79,0.05556633]
[1725464724235,3.7655,132.78,132.7,3.7676]
[1725464724437,3.82418195,132.82,132.79,0.04973285]
[1725464724742,26.02,132.81,132.67,1.7493]
[1725464725036,26.02,132.76,132.66,1.7489]
[1725464725237,3.7673,132.72,132.66,1.7489]
[1725464725541,29.8352444,132.76,132.66,1.7489]
[1725464725742,29.8352444,132.76,132.62,26.02]
[1725464725929,29.8352444,132.76,132.62,29.86800783]
[1725464726132,0.05427725,132.7,132.68,0.05798152]
[1725464726335,0.05427725,132.7,132.62,26.02]
[1725464726531,26.02,132.74,132.6,26.02]
[1725464726733,0.05527929,132.7,132.68,0.04887562]
[1725464727942,561.0,132.95,132.68,0.04887562]
[1725464728245,3.7649,132.8,132.7,26.02]
[1725464728434,3.84151398,132.8,132.7,26.02]
[1725464728637,26.02,132.8,132.69,1.7548]
[1725464728846,26.02,132.8,132.68,1.921]
[1725464728847,0.43410689,132.79,132.68,1.921]
[1725464729040,0.04906977,132.75,132.72,0.0537241]
[1725464729350,0.04794897,132.75,132.72,0.04915854]
[1725464729543,0.43392794,132.82,132.72,26.02]
[1725464729848,0.43390509,132.9,132.81,26.02]
[1725464730041,3.72033031,132.91,132.81,26.02]
[1725464730235,26.02,132.95,132.81,26.02]
[1725464730236,3.7624,132.89,132.83,3.7639]
[1725464730657,3.81038085,132.89,132.85,0.05569756]
[1725464730849,3.7629,132.87,132.85,0.05569756]
[1725464731147,3.7629,132.87,132.85,0.05271933]
[1725464731344,29.79873129,132.92,132.85,0.05271933]
[1725464731649,0.43327238,132.91,132.85,0.05271933]
[1725464731848,29.79873129,132.92,132.85,0.05271933]
[1725464731849,3.7631,132.86,132.85,0.05271933]
[1725464732250,3.7629,132.87,132.85,0.05271933]
[1725464732453,29.79873129,132.92,132.85,0.05271933]
[1725464732642,0.43356504,132.91,132.85,0.05271933]
[1725464732950,26.02,132.87,132.73,1.9034]
[1725464733147,0.43356504,132.91,132.54,26.02]
[1725464733148,26.02,132.81,132.68,1.7597]
[1725464733449,26.02,132.81,132.63,33.52632003]
[1725464733450,3.73380536,132.81,132.63,33.52632003]
[1725464733637,26.02,132.78,132.63,33.5508003]
[1725464733942,0.0553335,132.72,132.69,0.05458284]
[1725464734137,0.0553335,132.72,132.69,0.04837012]
[1725464734138,0.05778064,132.72,132.69,0.04837012]
[1725464734537,0.05778064,132.72,132.7,3.7674]
[1725464734740,0.05778064,132.72,132.69,0.04837012]
[1725464735744,0.05778064,132.72,132.71,3.7674]
[1725464735946,3.83360952,132.77,132.68,26.02]
[1725464736248,3.83360952,132.77,132.73,3.7667]
[1725464736249,3.7657,132.77,132.73,3.7667]
[1725464736456,29.74419423,132.8,132.68,26.02]
[1725464737151,29.74419423,132.8,132.73,0.05464707]
[1725464738042,3.7662,132.76,132.73,0.05464707]
[1725464738254,29.74419423,132.8,132.73,0.05464707]
[1725464738452,0.43385093,132.79,132.73,0.05464707]
[1725464738959,3.72419423,132.8,132.67,3.7684]
[1725464739146,3.72419423,132.8,132.64,1.7597]
[1725464739147,26.02,132.77,132.64,1.7597]
[1725464739658,73.38417796,132.95,132.76,26.02]
[1725464739861,26.02,132.91,132.77,3.6455]